[Event "CZE-ch U16 Girls 2023"]
[Site "Teplice"]
[Date "2023.03.18"]
[Round "9.11"]
[White "Macova, Marketa"]
[Black "Mullerova, Karina Nela"]
[Result "0-1"]
[ECO "A84"]
[WhiteElo "1195"]
[BlackElo "1283"]
[Annotator "NA RC COMBH"]
[PlyCount "84"]
[EventDate "2023.03.09"]
[EventType "swiss"]
[EventCountry "CZE"]
[SourceTitle "playchess.com"]
[Source "ChessBase"]
[SourceQuality "1"]
[TimeControl "40/5400+30:1800+30"]

1. d4 {[%emt 0:01:48]} e6 {[%emt 0:00:30]} 2. c4 {[%emt 0:00:35]} f5 {[%emt 0:01:00]} 3. Nc3 {[%emt 0:01:05]} d5 {[%emt 0:08:21]} 4. Nf3 {[%emt 0:01:53]} Nf6 {[%emt 0:01:42]} 5. Bg5 {[%emt 0:00:29]} Be7 {[%emt 0:00:12]} 6. e3 {[%emt 0:00:34]} O-O 7. Be2 b6 {[%emt 0:09:59]} 8. O-O {[%emt 0:02:48]} Bb7 {[%emt 0:01:21]} 9. Rc1 {[%emt 0:01:27]} Ne4 {[%emt 0:02:48]} 10. Bxe7 {[%emt 0:01:17]} Qxe7 {[%emt 0:00:15]} 11. Qb3 {[%emt 0:05:24]} c6 {[%emt 0:04:11]} 12. cxd5 {[%emt 0:05:14]} cxd5 {[%emt 0:00:59]} 13. Nb5 {[%emt 0:01:58]} Nc6 {[%emt 0:04:23]} 14. Rc2 {[%emt 0:04:43]} a6 {[%emt 0:10:58]} 15. Nc3 {[%emt 0:02:18]} b5 {[%emt 0:00:42]} 16. Nxe4 {[%emt 0:09:41]} fxe4 {[%emt 0:01:21]} 17. Nd2 {[%emt 0:03:32]} Rac8 {[%emt 0:05:03]} 18. a4 {[%emt 0:04:00]} Na5 {[%emt 0:03:59]} 19. Rxc8 {[%emt 0:06:48]} Nxb3 {[%emt 0:00:49]} 20. Rxf8+ {[%emt 0:00:26]} Kxf8 {[%emt 0:01:02]} 21. Nxb3 {[%emt 0:00:26]} Qb4 {[%emt 0:06:44]} 22. Nc5 {[%emt 0:02:40]} Bc8 {[%emt 0:00:07]} 23. b3 {[%emt 0:02:34]} bxa4 {[%emt 0:05:02]} 24. bxa4 {[%emt 0:00:12]} Ke7 {[%emt 0:01:05]} 25. Ra1 {[%emt 0:00:37]} a5 {[%emt 0:04:12]} 26. Bb5 {[%emt 0:02:15]} Kd6 {[%emt 0:01:17]} 27. Rc1 {[%emt 0:02:52]} Qb2 {[%emt 0:08:15]} 28. Nxe4+ {[%emt 0:01:51]} dxe4 {[%emt 0:06:53]} 29. Rc6+ {[%emt 0:01:59]} Ke7 {[%emt 0:00:47]} 30. Rxc8 {[%emt 0:00:41]} Qa1+ {[%emt 0:00:07]} 31. Bf1 {[%emt 0:00:15]} Qxa4 {[%emt 0:00:08]} 32. Rc7+ {[%emt 0:00:17]} Kf6 {[%emt 0:00:32]} 33. Rc5 {[%emt 0:00:43]} Qb4 {[%emt 0:01:40]} 34. h3 {[%emt 0:00:27]} a4 {[%emt 0:01:45]} 35. Rc4 {[%emt 0:00:44]} Qb3 {[%emt 0:00:21]} 36. Rc1 {[%emt 0:01:44]} Qb2 {[%emt 0:01:06]} 37. Re1 {[%emt 0:00:16]} a3 {[%emt 0:00:34]} 38. Bc4 {[%emt 0:00:12]} Qc3 {[%emt 0:00:55]} 39. Rf1 {[%emt 0:00:51]} Qxc4 {[%emt 0:00:14]} 40. Ra1 {[%emt 0:00:06]} Qb3 {[%emt 0:00:27]} 41. Kh2 {[%emt 0:30:21]} a2 {[%emt 0:30:24]} 42. Rxa2 {[%emt 0:00:16]} Qxa2 {[%emt 0:00:05]} 0-1

[Event "CZE-ch U16 Girls 2023"]
[Site "Teplice"]
[Date "2023.03.18"]
[Round "9.12"]
[White "Foldynova, Julie"]
[Black "Souralova, Jana"]
[Result "1/2-1/2"]
[ECO "C24"]
[WhiteElo "1100"]
[BlackElo "1187"]
[Annotator "NA RC COMBH"]
[PlyCount "72"]
[EventDate "2023.03.09"]
[EventType "swiss"]
[EventCountry "CZE"]
[SourceTitle "playchess.com"]
[Source "ChessBase"]
[SourceQuality "1"]
[TimeControl "40/5400+30:1800+30"]

1. e4 {[%emt 0:00:05]} e5 {[%emt 0:00:07]} 2. Bc4 {[%emt 0:00:06]} Nf6 {[%emt 0:00:12]} 3. d3 {[%emt 0:00:11]} Nc6 {[%emt 0:00:13]} 4. c3 {[%emt 0:00:11]} d6 {[%emt 0:14:42]} 5. Nf3 {[%emt 0:00:30]} Bg4 {[%emt 0:03:11]} 6. h3 {[%emt 0:00:24]} Bxf3 {[%emt 0:00:38]} 7. Qxf3 {[%emt 0:00:52]} Be7 {[%emt 0:00:53]} 8. Be3 {[%emt 0:00:38]} Qd7 {[%emt 0:04:42]} 9. Nd2 {[%emt 0:00:28]} O-O-O {[%emt 0:01:59]} 10. Bxf7 {[%emt 0:03:50]} Rdf8 {[%emt 0:01:33]} 11. Bb3 {[%emt 0:01:32]} h6 {[%emt 0:01:42]} 12. Qe2 {[%emt 0:01:27]} Nh7 {[%emt 0:04:20]} 13. Ba4 {[%emt 0:00:59]} Rf6 {[%emt 0:03:44]} 14. b4 {[%emt 0:01:19]} Rhf8 {[%emt 0:07:43]} 15. b5 {[%emt 0:03:38]} Nd8 {[%emt 0:00:52]} 16. Nc4 {[%emt 0:02:38]} b6 {[%emt 0:00:48]} 17. Rb1 {[%emt 0:00:57]} Ne6 {[%emt 0:01:48]} 18. Nd2 {[%emt 0:01:18]} Rg6 {[%emt 0:05:36]} 19. g3 {[%emt 0:01:08]} Bg5 {[%emt 0:09:36]} 20. h4 Bxe3 {[%emt 0:00:42]} 21. Qxe3 {[%emt 0:04:19]} Rgf6 {[%emt 0:00:37]} 22. Bb3 {[%emt 0:01:07]} g5 {[%emt 0:02:22]} 23. a4 {[%emt 0:04:25]} g4 {[%emt 0:07:23]} 24. a5 {[%emt 0:03:13]} Nc5 {[%emt 0:08:57]} 25. Bd5 {[%emt 0:03:28]} Nb7 {[%emt 0:00:42]} 26. axb6 {[%emt 0:02:31]} axb6 {[%emt 0:00:50]} 27. c4 {[%emt 0:01:10]} Na5 {[%emt 0:01:56]} 28. Nb3 {[%emt 0:01:39]} Nxb3 {[%emt 0:00:56]} 29. Rxb3 {[%emt 0:00:10]} Qg7 {[%emt 0:00:21]} 30. Ra3 {[%emt 0:03:16]} Rf3 {[%emt 0:07:00]} 31. Qe2 {[%emt 0:06:27]} Kd8 {[%emt 0:01:37]} 32. Ra8+ {[%emt 0:02:49]} Ke7 {[%emt 0:00:23]} 33. Ra7 {[%emt 0:02:29]} Kf6 {[%emt 0:00:33]} 34. Rf1 {[%emt 0:01:00]} Qe7 {[%emt 0:00:58]} 35. Qd2 {[%emt 0:01:42]} Kg7 {[%emt 0:00:47]} 36. d4 Nf6 1/2-1/2